fUST/lending_fUST_20240805
["ID","MTS","AMOUNT","RATE_DAILY","PERIOD"]
[334160756,1722805841664,-151.0,0.0001452,2]
[334160758,1722805841674,-151.0,0.0001452,2]
[334160760,1722805841684,-151.0,0.0001452,2]
[334160762,1722805841694,-500.0,0.0001452,2]
[334160764,1722805841705,-151.0,0.0001452,2]
[334160766,1722805841715,-500.0,0.0001452,2]
[334160768,1722805841725,-266.39231,0.0001452,2]
[334160770,1722805841734,-266.39231,0.0001452,2]
[334160772,1722805841744,-500.0,0.0001452,2]
[334160774,1722805841754,-1017.246799,0.0001452,2]
[334160776,1722805841763,-500.0,0.0001452,2]
[334160778,1722805841773,-1017.246799,0.0001452,2]
[334160780,1722805841782,-151.0,0.0001452,2]
[334160782,1722805841792,-500.0,0.0001452,2]
[334160784,1722805841806,-291.21,0.0001452,2]
[334160787,1722805841817,-460.1,0.0001452,2]
[334160789,1722805841826,-518.92,0.0001452,2]
[334160791,1722805841839,-500.0,0.0001452,2]
[334160793,1722805841849,-998.4,0.0001452,2]
[334160795,1722805841859,-500.0,0.0001452,2]
[334160797,1722805841869,-500.0,0.0001452,2]
[334160799,1722805841881,-500.0,0.0001452,2]
[334160801,1722805841890,-151.0,0.0001452,2]
[334160803,1722805841900,-500.0,0.0001452,2]
[334160805,1722805841910,-151.0,0.0001452,2]
[334160807,1722805841920,-151.0,0.0001452,2]
[334160809,1722805841931,-500.0,0.0001452,2]
[334160811,1722805841941,-662.14,0.0001452,2]
[334160813,1722805841952,-151.0,0.0001452,2]
[334160815,1722805841963,-500.0,0.0001452,2]
[334160817,1722805841973,-304.331614,0.0001452,2]
[334160820,1722805841984,-304.331614,0.0001452,2]
[334160821,1722805841994,-151.0,0.0001452,2]
[334160824,1722805842004,-151.0,0.0001452,2]
[334160826,1722805842014,-500.0,0.0001452,2]
[334160827,1722805842023,-500.0,0.0001452,2]
[334160829,1722805842033,-500.0,0.0001452,2]
[334160831,1722805842042,-565.96,0.0001452,2]
[334160833,1722805842052,-543.36,0.0001452,2]
[334160835,1722805842061,-632.5,0.0001452,2]
[334160837,1722805842071,-1498.61,0.0001452,2]
[334160839,1722805842084,-151.3,0.0001452,2]
[334160841,1722805842098,-251.93,0.0001452,2]
[334160843,1722805842107,-2737.24,0.0001452,2]
[334160845,1722805842116,-500.0,0.0001452,2]
[334160847,1722805842126,-1004.54,0.0001452,2]
[334160849,1722805842135,-360.29,0.00014616,7]
[334160851,1722805842145,-1020.414,0.00014652,2]
[334160853,1722805842155,-682.54080468,0.00014673,2]
[334160855,1722805842165,-1613.27,0.00014679,2]
[334160857,1722805842174,-1091.57771247,0.0001469,2]
[334160859,1722805842184,-11826.04311928,0.00014772,2]
[334160861,1722805842197,-3257.39999997,0.00014772,2]
[334160862,1722805842214,-9098.81216255,0.00014772,2]
[334160863,1722805842223,-151.0,0.00014772,2]
[334160864,1722805842232,-271.924532,0.00014772,2]
[334160865,1722805842242,-151.0,0.00014772,2]
[334160866,1722805842251,-271.924532,0.00014772,2]
[334160867,1722805842261,-151.0,0.00014772,2]
[334160868,1722805842271,-215.020347,0.00014772,2]
[334160869,1722805842281,-151.0,0.00014772,2]
[334160870,1722805842290,-215.020347,0.00014772,2]
[334160871,1722805842299,-421.216654,0.00014773,2]
[334160873,1722805842309,-421.216654,0.00014773,2]
[334160875,1722805842318,-151.0,0.00014774,2]
[334160877,1722805842327,-151.0,0.00014774,2]
[334160879,1722805842340,-151.0,0.00014774,2]
[334160881,1722805842349,-1017.246799,0.00014774,2]
[334160882,1722805842359,-1017.246799,0.00014774,2]
[334160884,1722805842368,-151.0,0.00014774,2]
[334160886,1722805842378,-304.331614,0.00014774,2]
[334160888,1722805842387,-304.331614,0.00014774,2]
[334160890,1722805842396,-151.0,0.00014774,2]
[334160892,1722805842405,-24182.2552818,0.00014774,2]
[334160894,1722805842415,-24182.2552818,0.00014783,2]
[334160895,1722805842424,-151.0,0.00014783,2]
[334160896,1722805842432,-1068.652851,0.00014783,2]
[334160898,1722805842442,-151.0,0.00014783,2]
[334160900,1722805842451,-1068.652851,0.00014783,2]
[334160902,1722805842460,-151.0,0.00014783,2]
[334160905,1722805842470,-266.39231,0.00014783,2]
[334160908,1722805842480,-266.39231,0.00014783,2]
[334160911,1722805842489,-500.0,0.00014783,2]
[334160914,1722805842499,-1783.83,0.00014783,2]
[334160917,1722805842508,-500.0,0.00014783,2]
[334160920,1722805842517,-151.0,0.00014783,2]
[334160923,1722805842527,-500.0,0.00014783,2]
[334160926,1722805842536,-271.924532,0.00014783,2]
[334160929,1722805842545,-151.0,0.00014783,2]
[334160932,1722805842556,-271.924532,0.00014783,2]
[334160935,1722805842570,-151.0,0.00014783,2]
[334160937,1722805842581,-215.020347,0.00014783,2]
[334160939,1722805842592,-1613.27,0.00014783,2]
[334160943,1722805842602,-1613.27,0.00014783,2]
[334160945,1722805842611,-151.0,0.00014783,2]
[334160949,1722805842622,-215.020347,0.00014783,2]
[334160952,1722805842632,-1613.27,0.00014783,2]
[334160954,1722805842643,-156.32171766,0.00014784,2]
[334160957,1722805842653,-155.31254566,0.00014784,2]
[334160960,1722805842663,-9677.18007245,0.00014784,2]
[334160963,1722805842672,-3785.86407866,0.00014784,2]
[334160966,1722805842682,-218.36320889,0.00014784,2]
[334160969,1722805842691,-500.52494589,0.00014784,2]
[334160972,1722805842700,-4712.76356463,0.00014784,2]
[334160975,1722805842709,-3602.20739431,0.00014784,2]
[334160978,1722805842718,-3608.62140677,0.00014784,2]
[334160981,1722805842728,-155.15168842,0.00014784,2]
[334160984,1722805842738,-2108.95048088,0.00014784,2]
[334160987,1722805842747,-16288.37255921,0.00014784,2]
[334160990,1722805842757,-14923.94363834,0.00014784,2]
[334161404,1722805846035,-470.29648111,9.999e-05,2]
[334161407,1722805846045,-2556.8195197,0.000129,2]
[334161410,1722805846054,-500.0,0.00013698,2]
[334161413,1722805846063,-500.0,0.00013698,2]
[334161415,1722805846072,-500.0,0.00013698,2]
[334161418,1722805846086,-500.0,0.00013972,2]
[334161421,1722805846095,-500.0,0.00013972,2]
[334161423,1722805846104,-500.0,0.00013972,2]
[334161426,1722805846113,-500.0,0.00014246,2]
[334161429,1722805846122,-500.0,0.00014246,2]
[334161431,1722805846131,-500.0,0.0001452,2]
[334161434,1722805846141,-500.0,0.0001452,2]
[334161437,1722805846150,-4541.07506867,0.00014784,2]
[334161439,1722805846159,-154.77569405,0.00014784,2]
[334161441,1722805846169,-1630.23174338,0.00014784,2]
[334161444,1722805846178,-151.0,0.00014784,2]
[334161447,1722805846187,-151.0,0.00014784,2]
[334161449,1722805846196,-151.0,0.00014784,2]
[334161452,1722805846205,-151.0,0.00014784,2]
[334161455,1722805846214,-421.216654,0.00014784,2]
[334161457,1722805846224,-421.216654,0.00014784,2]
[334161460,1722805846234,-421.216654,0.00014784,2]
[334161462,1722805846242,-421.216654,0.00014784,2]
[334161464,1722805846252,-151.0,0.00014784,2]
[334161466,1722805846261,-1068.652851,0.00014784,2]
[334161469,1722805846270,-246.971675,0.00014784,2]
[334161472,1722805846280,-151.0,0.00014784,2]
[334161474,1722805846291,-151.711685,0.00014784,2]
[334161478,1722805846302,-266.39231,0.00014784,2]
[334161482,1722805846312,-266.39231,0.00014784,2]
[334161485,1722805846323,-1017.246799,0.00014784,2]
[334161488,1722805846336,-1017.246799,0.00014784,2]
[334161490,1722805846346,-304.331614,0.00014784,2]
[334161492,1722805846356,-304.331614,0.00014784,2]
[334161494,1722805846365,-151.0,0.00014784,2]
[334161496,1722805846375,-151.0,0.00014784,2]
[334161498,1722805846384,-271.924532,0.00014784,2]
[334161500,1722805846394,-151.0,0.00014784,2]
[334161502,1722805846404,-271.924532,0.00014784,2]
[334161504,1722805846414,-151.0,0.00014784,2]
[334161506,1722805846424,-215.020347,0.00014784,2]
[334161508,1722805846435,-151.0,0.00014784,2]
[334161510,1722805846445,-215.020347,0.00014784,2]
[334161512,1722805846457,-631.31,0.00014793,2]
[334161514,1722805846467,-500.0,0.00014793,2]
[334161516,1722805846477,-754.4,0.00014793,2]
[334161519,1722805846489,-287.0,0.00014793,2]
[334161521,1722805846500,-500.0,0.00014793,2]
[334161523,1722805846510,-22653.96434206,0.00014794,5]
[334161525,1722805846519,-500.0,0.00014794,2]
[334161527,1722805846530,-500.0,0.00014794,2]
[334161529,1722805846541,-500.0,0.00014794,2]
[334161530,1722805846550,-500.0,0.00014794,2]
[334161531,1722805846562,-283.44,0.00014794,2]
[334161532,1722805846573,-500.0,0.00014794,2]
[334161533,1722805846585,-500.0,0.00014794,2]
[334161534,1722805846595,-500.0,0.00014794,2]
[334161535,1722805846606,-998.4,0.00014794,2]
[334161536,1722805846616,-500.0,0.00014794,2]
[334161537,1722805846626,-500.0,0.00014794,2]
[334161538,1722805846637,-500.0,0.00014794,2]
[334161539,1722805846647,-500.0,0.00014794,2]
[334161540,1722805846656,-649.9,0.00014794,2]
[334161541,1722805846666,-662.14,0.00014794,2]
[334161542,1722805846675,-500.0,0.00014794,2]
[334161543,1722805846684,-304.331614,0.00014794,2]
[334161544,1722805846693,-304.331614,0.00014794,2]
[334161545,1722805846702,-500.0,0.00014794,2]
[334161546,1722805846711,-151.0,0.00014794,2]
[334161547,1722805846723,-500.0,0.00014794,2]
[334161548,1722805846735,-500.0,0.00014794,2]
[334161549,1722805846744,-543.36,0.00014794,2]
[334161550,1722805846753,-632.5,0.00014794,2]
[334161552,1722805846762,-1498.61,0.00014794,2]
[334161553,1722805846771,-2737.24,0.00014794,2]
[334161555,1722805846780,-244.36,0.00014794,2]
[334161556,1722805846789,-1004.54,0.00014794,2]
[334161559,1722805846799,-500.0,0.00014794,2]
[334161561,1722805846809,-500.0,0.00014794,2]
[334161563,1722805846820,-200.0,0.00014795,2]
[334161565,1722805846832,-150.112233,0.000148,2]
[334161567,1722805846843,-2000.0,0.000149,2]
[334161569,1722805846853,-2032.41869278,0.00014922,2]
[334161571,1722805846863,-159.297406,0.00014968,2]
[334161573,1722805846873,-2848.36326452,0.00015,2]
[334161575,1722805846884,-1060.99846949,0.00015,2]
[334161577,1722805846895,-951.65187642,0.00015,2]
[334161579,1722805846908,-275.88215159,0.00015,2]
[334161581,1722805846918,-1068.652851,0.00015,2]
[334161583,1722805846928,-1068.652851,0.00015,2]
[334161585,1722805846938,-151.0,0.00015,2]
[334161587,1722805846947,-266.39231,0.00015,2]
[334161589,1722805846956,-266.39231,0.00015,2]
[334161591,1722805846965,-1017.246799,0.00015,2]
[334161593,1722805846974,-1017.246799,0.00015,2]
[334161595,1722805846983,-24182.2552818,0.00015011,2]
[334161597,1722805846993,-151.0,0.00015012,2]
[334161599,1722805847002,-271.924532,0.00015012,2]
[334161601,1722805847011,-151.0,0.00015012,2]
[334161603,1722805847020,-271.924532,0.00015012,2]
[334161605,1722805847029,-151.0,0.00015012,2]
[334161607,1722805847039,-215.020347,0.00015012,2]
[334161609,1722805847048,-151.0,0.00015012,2]
[334161611,1722805847058,-215.020347,0.00015012,2]
[334161613,1722805847069,-24182.2552818,0.00015022,2]
[334161615,1722805847080,-304.331614,0.00015022,2]
[334161617,1722805847090,-304.331614,0.00015022,2]
[334161619,1722805847100,-151.0,0.00015022,2]
[334161621,1722805847110,-16154.94388682,0.00015032,2]
[334169552,1722806003502,-156.96415589,9.999e-05,2]
[334169553,1722806007237,-246.77759457,9.999e-05,2]
[334169556,1722806007983,-183.10678503,9.999e-05,2]
[334169557,1722806008006,-303.28436704,9.999e-05,2]
[334169559,1722806008028,-56.6891849,9.999e-05,2]
[334169564,1722806011564,-154.77557542,9.999e-05,2]
[334169565,1722806012763,-77.0673368,9.999e-05,2]
[334169566,1722806012790,-154.77557542,9.999e-05,2]
[334169567,1722806017581,-25.70345378,9.999e-05,2]
[334169568,1722806017602,-159.24043179,9.999e-05,2]
[334169569,1722806017629,-16.53192653,9.999e-05,2]
[334169570,1722806019558,-228.31365221,9.999e-05,2]
[334169571,1722806025960,-154.77557542,9.999e-05,2]
[334169572,1722806040730,-10.75949381,9.999e-05,2]
[334169573,1722806040757,-156.96415589,9.999e-05,2]
[334169574,1722806040784,-246.18867341,9.999e-05,2]
[334169575,1722806042533,-296.89166356,9.999e-05,2]
[334169576,1722806043824,-201.4758121,9.999e-05,2]
[334169577,1722806086218,-154.77557542,9.999e-05,2]
[334169578,1722806086246,-413.91232311,9.999e-05,2]
[334169579,1722806086270,-201.4758121,9.999e-05,2]
[334169580,1722806086299,-1338.78677025,9.999e-05,2]
[334169581,1722806087329,-3373.97679438,9.999e-05,2]
[334169582,1722806087352,-205.1880395,9.999e-05,2]
[334169583,1722806087377,-206.69924478,9.999e-05,2]
[334169584,1722806088375,-1707.2170183,9.999e-05,2]
[334169585,1722806088398,-1666.75977608,9.999e-05,2]
[334169586,1722806090024,-1707.2170183,9.999e-05,2]
[334169587,1722806091851,-16091.04191263,9.999e-05,2]
[334169588,1722806091874,-1707.2170183,9.999e-05,2]
[334169589,1722806093082,-1901.40438847,9.999e-05,2]
[334169590,1722806093106,-14189.63752416,9.999e-05,2]
[334169591,1722806093792,-183.10678503,9.999e-05,2]
[334169592,1722806094866,-1901.40438847,9.999e-05,2]
[334169593,1722806096170,-14.22386155,9.999e-05,2]
[334169594,1722806096195,-217.92268731,9.999e-05,2]
[334169595,1722806096218,-1866.58848619,9.999e-05,2]
[334169599,1722806611142,24900.0,8.969e-05,2]
[334169600,1722806653702,3602.20739431,8.969e-05,2]
[334169601,1722806659172,218.36320889,8.969e-05,2]
[334169602,1722806681310,4712.76356463,8.969e-05,2]
[334169603,1722806690736,16288.37255921,8.969e-05,2]
[334169604,1722806693577,19465.01870701,8.969e-05,2]
[334169605,1722806696074,19465.01870701,8.969e-05,2]
[334169606,1722806707413,3608.62140677,8.969e-05,2]
[334169607,1722806709157,2108.95048088,8.969e-05,2]
[334169608,1722806711877,404.72502915,8.969e-05,2]
[334169609,1722806721842,3785.86407866,8.969e-05,2]
[334169612,1722806752519,281.2733069,8.969e-05,2]
[334169614,1722806759171,217.86716505,8.969e-05,2]
[334169616,1722806770314,4712.76356463,8.969e-05,2]
[334169617,1722806775243,8063.80564773,8.969e-05,2]
[334169620,1722806805715,2108.95048088,8.969e-05,2]
[334169627,1722806810622,19465.01870701,8.969e-05,2]
[334169631,1722806819573,19465.01870701,8.969e-05,2]
[334169632,1722806823401,3608.62140677,8.969e-05,2]
[334169633,1722806835828,3785.86407866,8.969e-05,2]
[334169635,1722806864513,3601.91477368,8.969e-05,2]
[334169636,1722806865774,4315.77719393,8.969e-05,2]
[334169638,1722806874362,4712.76356463,8.969e-05,2]
[334169639,1722806880879,963.3321027,8.933e-05,2]
[334169642,1722806894616,3601.91477368,8.969e-05,2]
[334169643,1722806897412,2610.04534347,8.969e-05,2]
[334169645,1722806902681,2013.54457312,8.969e-05,2]
[334169649,1722806940575,2393.26007516,8.969e-05,2]
[334169650,1722806941825,3785.86407866,8.969e-05,2]
[334169652,1722806952829,3785.86407866,8.969e-05,2]
[334169659,1722806980335,1867.05423378,8.969e-05,2]
[334169804,1722806998074,5000.0,0.00025,60]
[334170401,1722807025544,3346.36227368,8.969e-05,2]
[334170493,1722807033162,-250.0,9.136e-05,2]
[334170495,1722807033173,-250.0,9.229e-05,2]
[334170497,1722807033183,-250.0,9.254e-05,2]
[334170498,1722807033193,-250.0,9.279e-05,2]
[334170499,1722807033202,-250.0,9.304e-05,2]
[334170500,1722807033211,-250.0,9.33e-05,2]
[334170501,1722807033221,-250.0,9.355e-05,2]
[334170502,1722807033231,-250.0,9.38e-05,2]
[334170503,1722807033241,-21.42155171,9.406e-05,2]
[334170504,1722807033253,-228.57844829,9.406e-05,2]
[334170505,1722807033263,-250.0,9.431e-05,2]
[334170506,1722807033273,-250.0,9.456e-05,2]
[334170507,1722807033283,-250.0,9.482e-05,2]
[334170508,1722807033293,-250.0,9.507e-05,2]
[334170509,1722807033303,-250.0,9.532e-05,2]
[334170510,1722807033313,-250.0,9.558e-05,2]
[334170511,1722807033322,-250.0,9.583e-05,2]
[334170512,1722807033331,-62.30225659,9.608e-05,2]
[334170517,1722807038312,-187.69774341,9.512e-05,2]
[334170518,1722807038322,-187.69774341,9.608e-05,2]
[334170519,1722807038332,-250.0,9.634e-05,2]
[334170520,1722807038342,-250.0,9.659e-05,2]
[334170521,1722807038352,-250.0,9.684e-05,2]
[334170522,1722807038363,-250.0,9.71e-05,2]
[334170523,1722807038373,-191.62470048,9.899e-05,2]
[334170524,1722807038382,-300.0,9.998e-05,2]
[334170525,1722807038392,-300.0,9.998e-05,2]
[334170526,1722807038402,-183.10678503,9.999e-05,2]
[334170527,1722807038412,-288.53209712,9.999e-05,2]
[334170528,1722807038422,-154.77557542,9.999e-05,2]
[334170529,1722807038432,-403.74175046,9.999e-05,2]
[334170530,1722807038443,-289.60677752,9.999e-05,2]
[334170531,1722807038452,-543.08033697,9.999e-05,2]
[334170532,1722807038462,-180.4790292,9.999e-05,2]
[334170533,1722807038472,-154.77557542,9.999e-05,2]
[334170534,1722807038482,-165.53506923,9.999e-05,2]
[334170535,1722807038492,-849.39914621,9.999e-05,2]
[334170536,1722807038501,-271.30112198,9.999e-05,2]
[334170537,1722807038511,-154.77557542,9.999e-05,2]
[334170538,1722807038520,-413.91232311,9.999e-05,2]
[334170539,1722807038530,-154.77557542,9.999e-05,2]
[334170540,1722807038540,-523.06806918,9.999e-05,2]
[334170541,1722807038549,-205.1880395,9.999e-05,2]
[334170542,1722807038559,-201.4758121,9.999e-05,2]
[334170543,1722807038569,-694.1093999,9.999e-05,2]
[334170544,1722807038579,-160.0,9.999e-05,2]
[334170545,1722807038589,-319.72766707,9.999e-05,2]
[334170546,1722807038598,-300.99621399,9.999e-05,2]
[334170547,1722807038608,-303.28436704,9.999e-05,2]
[334170548,1722807038618,-632.98875296,9.999e-05,2]
[334170549,1722807038628,-356.45346079,9.999e-05,2]
[334170550,1722807038638,-463.33605591,9.999e-05,2]
[334170551,1722807038647,-188.2181997,9.999e-05,2]
[334170552,1722807038656,-157.64271038,9.999e-05,2]
[334170553,1722807038665,-309.47390132,9.999e-05,2]
[334170554,1722807038675,-154.80649189,9.999e-05,2]
[334170555,1722807038684,-727.403836,9.999e-05,2]
[334170556,1722807038694,-154.77557542,9.999e-05,2]
[334170557,1722807038703,-250.3410689,9.999e-05,2]
[334170558,1722807038713,-533.92328189,9.999e-05,2]
[334170559,1722807038722,-156.61103376,9.999e-05,2]
[334170560,1722807038732,-191.83043346,0.0001,2]
[334170561,1722807038742,-287.77266661,0.0001,2]
[334170562,1722807038752,-154.77557542,0.0001,2]
[334170563,1722807038761,-154.77557542,0.0001,2]
[334170564,1722807038771,-3785.86407866,0.00010871,2]
[334170565,1722807038780,-420.0,0.00010998,2]
[334170566,1722807038789,-420.0,0.00010998,2]
[334170567,1722807038799,-587.0,0.00012098,2]
[334170568,1722807038808,-30142.5828648,0.0001211,2]
[334170569,1722807038818,-309.45844772,0.0001212,2]
[334170570,1722807038827,-174.37281606,0.0001212,2]
[334170571,1722807038836,-45697.51915539,0.0001212,2]
[334170572,1722807038846,-5285.66255025,0.000124,2]
[334170573,1722807038856,-4513.55657017,0.000125,2]
[334170574,1722807038865,-5285.66255021,0.00012768,2]
[334170575,1722807038875,-2826.15868835,0.000129,2]
[334170576,1722807038884,-9675.60609712,0.0001299,2]
[334170577,1722807038893,-5285.66255021,0.00013136,2]
[334170578,1722807038902,-261.0,0.00013307,2]
[334170579,1722807038913,-2208.63,0.00013424,2]
[334170580,1722807038929,-2208.63,0.00013424,2]
[334170581,1722807038941,-2208.63,0.00013424,2]
[334170582,1722807038952,-5285.66255021,0.00013504,2]
[334170583,1722807038963,-635.53510405,0.00013594,2]
[334170584,1722807038973,-4645.44221486,0.00013597,2]
[334170585,1722807038983,-30142.5828648,0.00013678,2]
[334170586,1722807038994,-30142.5828648,0.00013678,2]
[334170587,1722807039008,-18608.32766161,0.00013688,2]
[334170588,1722807039020,-30142.5828648,0.00013688,2]
[334170589,1722807039032,-2208.63,0.00013697,2]
[334170590,1722807039042,-500.0,0.00013698,2]
[334170591,1722807039051,-500.0,0.00013698,2]
[334170592,1722807039062,-524.63572667,0.00013698,2]
[334170593,1722807039071,-500.0,0.00013698,2]
[334170594,1722807039081,-500.0,0.00013698,2]
[334170595,1722807039093,-500.0,0.00013698,2]
[334170596,1722807039104,-500.0,0.00013698,2]
[334170597,1722807039114,-500.0,0.00013698,2]
[334170598,1722807039125,-500.0,0.00013698,2]
[334170599,1722807039135,-500.0,0.00013698,2]
[334170600,1722807039145,-500.0,0.00013698,2]
[334170601,1722807039155,-500.0,0.00013698,2]
[334170602,1722807039165,-500.0,0.00013698,2]
[334170603,1722807039175,-500.0,0.00013698,2]
[334170604,1722807039186,-500.0,0.00013698,2]
[334170605,1722807039196,-500.0,0.00013698,2]
[334170606,1722807039205,-500.0,0.00013698,2]
[334170607,1722807039216,-500.0,0.00013698,2]
[334170608,1722807039227,-500.0,0.00013698,2]
[334170609,1722807039239,-500.0,0.00013698,2]
[334170610,1722807039251,-500.0,0.00013698,2]
[334170611,1722807039262,-500.0,0.00013698,2]
[334170612,1722807039272,-375.64,0.00013698,2]
[334170613,1722807039283,-392.98,0.00013698,2]
[334170614,1722807039293,-329.19,0.00013698,2]
[334170615,1722807039304,-500.0,0.00013698,2]
[334170616,1722807039314,-500.0,0.00013698,2]
[334170617,1722807039325,-500.0,0.00013698,2]
[334170618,1722807039335,-500.0,0.00013698,2]
[334170619,1722807039347,-500.0,0.00013698,2]
[334170620,1722807039358,-500.0,0.00013698,2]
[334170621,1722807039368,-500.0,0.00013698,2]
[334170622,1722807039379,-878.97,0.00013698,2]
[334170623,1722807039388,-500.0,0.00013698,2]
[334170624,1722807039398,-500.0,0.00013698,2]
[334170625,1722807039407,-500.0,0.00013698,2]
[334170626,1722807039418,-500.0,0.00013698,2]
[334170627,1722807039429,-500.0,0.00013698,2]
[334170628,1722807039439,-500.0,0.00013698,2]
[334170629,1722807039450,-810.38,0.00013698,2]
[334170630,1722807039463,-500.0,0.00013698,2]
[334170631,1722807039475,-500.0,0.00013698,2]
[334170632,1722807039486,-1808.78,0.00013698,2]
[334170633,1722807039498,-500.0,0.00013698,2]
[334170634,1722807039507,-500.0,0.00013698,2]
[334170635,1722807039518,-500.0,0.00013698,2]
[334170637,1722807039527,-861.84,0.00013698,2]
[334170638,1722807039536,-518.92,0.00013698,2]
[334170639,1722807039546,-500.0,0.00013698,2]
[334170641,1722807039558,-500.0,0.00013698,2]
[334170642,1722807039568,-500.0,0.00013698,2]
[334170643,1722807039578,-500.0,0.00013698,2]
[334170644,1722807039587,-500.0,0.00013698,2]
[334170646,1722807039599,-380.5740175,0.00013698,2]
[334170647,1722807039608,-500.0,0.00013698,2]
[334170648,1722807039618,-500.0,0.00013698,2]
[334170651,1722807039628,-500.0,0.00013698,2]
[334170653,1722807039637,-641.77,0.00013698,2]
[334170655,1722807039646,-500.0,0.00013698,2]
[334170658,1722807039655,-436.07345128,0.00013698,2]
[334170661,1722807039665,-500.0,0.00013698,2]
[334170665,1722807039676,-500.0,0.00013698,2]
[334170666,1722807039687,-204.82706341,0.00013698,2]
[334170668,1722807039696,-500.0,0.00013698,2]
[334170670,1722807039706,-500.0,0.00013698,2]
[334170671,1722807039715,-500.0,0.00013698,2]
[334170673,1722807039725,-500.0,0.00013698,2]
[334170675,1722807039735,-500.0,0.00013698,2]
[334170676,1722807039746,-500.0,0.00013698,2]
[334170678,1722807039757,-500.0,0.00013698,2]
[334170679,1722807039767,-500.0,0.00013698,2]
[334170681,1722807039777,-500.0,0.00013698,2]
[334170682,1722807039787,-500.0,0.00013698,2]
[334170683,1722807039796,-500.0,0.00013698,2]
[334170685,1722807039806,-500.0,0.00013698,2]
[334170686,1722807039815,-335.82532474,0.00013698,2]
[334170687,1722807039825,-500.0,0.00013698,2]
[334170690,1722807039834,-500.0,0.00013698,2]
[334170692,1722807039844,-339.86043923,0.00013698,2]
[334170693,1722807039854,-500.0,0.00013698,2]
[334170695,1722807039863,-500.0,0.00013698,2]
[334170696,1722807039873,-500.0,0.00013698,2]
[334170698,1722807039883,-500.0,0.00013698,2]
[334170699,1722807039892,-572.52,0.00013698,2]
[334170700,1722807039902,-500.0,0.00013698,2]
[334170702,1722807039913,-151.3,0.00013698,2]
[334170703,1722807039926,-500.0,0.00013698,2]
[334170705,1722807039935,-500.0,0.00013698,2]
[334170706,1722807039947,-500.0,0.00013698,2]
[334170707,1722807039956,-1361.53,0.00013698,2]
[334170709,1722807039972,-500.0,0.00013698,2]
[334170710,1722807039983,-500.0,0.00013698,2]
[334170712,1722807039993,-472.17357371,0.00013698,2]
[334170713,1722807040006,-251.93,0.00013698,2]
[334170714,1722807040017,-500.0,0.00013698,2]
[334170716,1722807040027,-500.0,0.00013698,2]
[334170717,1722807040037,-500.0,0.00013698,2]
[334170719,1722807040046,-500.0,0.00013698,2]
[334170720,1722807040056,-500.0,0.00013698,2]
[334170721,1722807040065,-500.0,0.00013698,2]
[334170723,1722807040074,-500.0,0.00013698,2]
[334170724,1722807040083,-500.0,0.00013698,2]
[334170725,1722807040093,-2284.99,0.00013698,2]
[334170727,1722807040103,-500.0,0.00013698,2]
[334170728,1722807040113,-500.0,0.00013698,2]
[334170730,1722807040122,-500.0,0.00013698,2]
[334170731,1722807040131,-500.0,0.00013698,2]
[334170732,1722807040141,-150.112233,0.000137,2]
[334170734,1722807040151,-5285.66255021,0.00013872,2]
[334170735,1722807040161,-2208.63,0.0001396,2]
[334170736,1722807040172,-30142.5828648,0.00013962,2]
[334170738,1722807040181,-397.16,0.00013972,2]
[334170739,1722807040192,-340.56,0.00013972,2]
[334170741,1722807040202,-500.0,0.00013972,2]
[334170742,1722807040211,-294.851657,0.00013972,2]
[334170743,1722807040221,-294.851657,0.00013972,2]
[334170745,1722807040231,-500.0,0.00013972,2]
[334170746,1722807040240,-878.97,0.00013972,2]
[334170748,1722807040251,-500.0,0.00013972,2]
[334170749,1722807040261,-500.0,0.00013972,2]